fUSD/lending_fUSD_20240324
["ID","MTS","AMOUNT","RATE_DAILY","PERIOD"]
[320343267,1711313478532,-606.78,0.00019452,2]
[320343268,1711313478542,-500.0,0.00019452,2]
[320343269,1711313478551,-866.38,0.00019452,2]
[320343270,1711313478561,-1177.58,0.00019452,2]
[320343271,1711313478571,-500.0,0.00019452,2]
[320343272,1711313478581,-500.0,0.00019452,2]
[320343273,1711313478591,-500.50585903,0.00019452,2]
[320343274,1711313478600,-155.28763711,0.00019452,2]
[320343275,1711313478610,-500.0,0.00019452,2]
[320343276,1711313478621,-503.69622135,0.00019452,2]
[320343277,1711313478631,-1784.27,0.00019452,2]
[320343278,1711313478641,-500.0,0.00019452,2]
[320343279,1711313478651,-657.66,0.00019452,2]
[320343280,1711313478661,-500.0,0.00019452,2]
[320343281,1711313478671,-151.0,0.00019452,2]
[320343282,1711313478681,-4122.14,0.00019452,2]
[320343283,1711313478692,-151.0,0.00019452,2]
[320343284,1711313478701,-500.0,0.00019452,2]
[320343285,1711313478710,-151.0,0.00019452,2]
[320343286,1711313478720,-569.69494454,0.00019452,2]
[320343287,1711313478729,-151.0,0.00019452,2]
[320343288,1711313478739,-500.0,0.00019452,2]
[320343289,1711313478749,-1355.77,0.00019452,2]
[320343290,1711313478759,-567.19,0.00019452,2]
[320343291,1711313478768,-500.0,0.00019452,2]
[320343292,1711313478778,-151.0,0.00019452,2]
[320343293,1711313478789,-151.0,0.00019452,2]
[320343294,1711313478799,-500.0,0.00019452,2]
[320343295,1711313478809,-839.84,0.00019452,2]
[320343296,1711313478818,-151.0,0.00019452,2]
[320343297,1711313478828,-2779.6,0.00019452,2]
[320343298,1711313478837,-213.39521349,0.00019452,2]
[320343299,1711313478847,-151.0,0.00019452,2]
[320343300,1711313478857,-2714.09,0.00019452,2]
[320343301,1711313478868,-2345.55,0.00019452,2]
[320343302,1711313478879,-996.46,0.00019452,2]
[320343303,1711313478889,-611.01,0.00019452,2]
[320343304,1711313478898,-500.0,0.00019452,2]
[320343305,1711313478908,-500.0,0.00019452,2]
[320343306,1711313478917,-673.93,0.00019452,2]
[320343307,1711313478926,-500.0,0.00019452,2]
[320343308,1711313478935,-2200.99,0.00019452,2]
[320343309,1711313478945,-500.0,0.00019452,2]
[320343310,1711313478954,-500.0,0.00019452,2]
[320343311,1711313478964,-500.83653453,0.00019452,2]
[320343312,1711313478974,-500.0,0.00019452,2]
[320343313,1711313478983,-500.0,0.00019452,2]
[320343314,1711313478993,-151.0,0.00019452,2]
[320343315,1711313479003,-151.0,0.00019452,2]
[320343316,1711313479013,-500.0,0.00019452,2]
[320343317,1711313479022,-11847.9,0.00019452,2]
[320343318,1711313479031,-1031.46,0.00019452,2]
[320343319,1711313479041,-1139.38,0.00019452,2]
[320343320,1711313479051,-2748.76,0.00019452,2]
[320343321,1711313479060,-500.0,0.00019452,2]
[320343322,1711313479070,-500.98787396,0.00019452,2]
[320343323,1711313479079,-500.0,0.00019452,2]
[320343324,1711313479089,-483.90058871,0.00019452,2]
[320343325,1711313479098,-500.0,0.00019452,2]
[320343326,1711313479108,-500.0,0.00019452,2]
[320343327,1711313479118,-151.0,0.00019452,2]
[320343328,1711313479128,-151.0,0.00019452,2]
[320343329,1711313479137,-500.0,0.00019452,2]
[320343330,1711313479148,-500.0,0.00019452,2]
[320343331,1711313479157,-2102.93,0.00019452,2]
[320343332,1711313479167,-1661.95,0.00019452,2]
[320343333,1711313479177,-500.0,0.00019452,2]
[320343334,1711313479188,-583.02,0.00019452,2]
[320343335,1711313479197,-500.0,0.00019452,2]
[320343336,1711313479207,-500.0,0.00019452,2]
[320343337,1711313479217,-2619.58,0.00019452,2]
[320343338,1711313479226,-821.76,0.00019452,2]
[320343339,1711313479236,-500.0,0.00019452,2]
[320343340,1711313479246,-500.0,0.00019452,2]
[320343341,1711313479256,-500.0,0.00019452,2]
[320343342,1711313479265,-660.67,0.00019452,2]
[320343343,1711313479275,-2735.23,0.00019452,2]
[320343344,1711313479284,-501.82320614,0.00019452,2]
[320343345,1711313479295,-1283.28,0.00019452,2]
[320343346,1711313479305,-632.2,0.00019452,2]
[320343347,1711313479315,-500.0,0.00019452,2]
[320343348,1711313479324,-500.0,0.00019452,2]
[320343349,1711313479334,-501.46587009,0.00019452,2]
[320343350,1711313479343,-421.94497739,0.00019452,2]
[320343351,1711313479353,-500.0,0.00019452,2]
[320343352,1711313479363,-659.18,0.00019452,2]
[320343353,1711313479373,-500.0,0.00019452,2]
[320343354,1711313479383,-2032.65,0.00019452,2]
[320343355,1711313479392,-500.0,0.00019452,2]
[320343356,1711313479402,-500.0,0.00019452,2]
[320343357,1711313479412,-500.0,0.00019452,2]
[320343358,1711313479421,-2803.5,0.00019452,2]
[320343359,1711313479431,-500.0,0.00019452,2]
[320343360,1711313479441,-500.0,0.00019452,2]
[320343361,1711313479450,-1595.21,0.00019452,2]
[320343362,1711313479460,-867.31,0.00019452,2]
[320343363,1711313479470,-500.0,0.00019452,2]
[320343364,1711313479479,-500.0,0.00019452,2]
[320343365,1711313479489,-500.0,0.00019452,2]
[320343366,1711313479499,-500.0,0.00019452,2]
[320343367,1711313479509,-500.0,0.00019452,2]
[320343368,1711313479519,-943.85,0.00019452,2]
[320343369,1711313479529,-500.0,0.00019452,2]
[320343370,1711313479539,-500.0,0.00019452,2]
[320343371,1711313479549,-2368.63,0.00019452,2]
[320343372,1711313479558,-500.0,0.00019452,2]
[320343373,1711313479567,-500.0,0.00019452,2]
[320343374,1711313479577,-151.0,0.00019452,2]
[320343375,1711313479587,-518.18,0.00019452,2]
[320343376,1711313479597,-151.0,0.00019452,2]
[320343377,1711313479606,-500.0,0.00019452,2]
[320343378,1711313479616,-500.0,0.00019452,2]
[320343379,1711313479626,-1841.14,0.00019452,2]
[320343380,1711313479636,-500.0,0.00019452,2]
[320343381,1711313479646,-500.0,0.00019452,2]
[320343382,1711313479656,-1347.09,0.00019452,2]
[320343383,1711313479665,-500.0,0.00019452,2]
[320343384,1711313479675,-500.0,0.00019452,2]
[320343385,1711313479684,-1018.95,0.00019452,2]
[320343386,1711313479695,-341.574064,0.00019452,2]
[320343387,1711313479704,-532.65,0.00019452,2]
[320343388,1711313479714,-2278.29,0.00019452,2]
[320343389,1711313479724,-500.0,0.00019452,2]
[320343390,1711313479733,-500.0,0.00019452,2]
[320343391,1711313479743,-500.0,0.00019452,2]
[320343392,1711313479754,-588.83,0.00019452,2]
[320343393,1711313479764,-947.95,0.00019452,2]
[320343394,1711313479775,-500.0,0.00019452,2]
[320343395,1711313479787,-500.0,0.00019452,2]
[320343396,1711313479797,-500.0,0.00019452,2]
[320343397,1711313479807,-4680.38,0.00019452,2]
[320343398,1711313479816,-500.0,0.00019452,2]
[320343399,1711313479826,-500.0,0.00019452,2]
[320343400,1711313479836,-500.0,0.00019452,2]
[320343401,1711313479846,-504.36727428,0.00019452,2]
[320343402,1711313479856,-500.0,0.00019452,2]
[320343403,1711313479866,-2296.14,0.00019452,2]
[320343404,1711313479876,-500.0,0.00019452,2]
[320343405,1711313479886,-500.0,0.00019452,2]
[320343406,1711313479895,-3896.68,0.00019452,2]
[320343407,1711313479905,-1075.49,0.00019452,2]
[320343408,1711313479914,-500.0,0.00019452,2]
[320343409,1711313479923,-1460.17,0.00019452,2]
[320343410,1711313479933,-500.0,0.00019452,2]
[320343411,1711313479945,-2264.98,0.00019452,2]
[320343412,1711313479954,-2582.14,0.00019452,2]
[320343413,1711313479963,-500.0,0.00019452,2]
[320343414,1711313479973,-500.0,0.00019452,2]
[320343415,1711313479983,-500.0,0.00019452,2]
[320343416,1711313479992,-1232.47,0.00019452,2]
[320343417,1711313480002,-500.0,0.00019452,2]
[320343418,1711313480013,-500.0,0.00019452,2]
[320343419,1711313480023,-500.0,0.00019452,2]
[320343420,1711313480034,-502.24040709,0.00019452,2]
[320343421,1711313480044,-500.0,0.00019452,2]
[320343422,1711313480054,-500.0,0.00019452,2]
[320343423,1711313480249,-1663.55,0.00019452,2]
[320343424,1711313480276,-1714.25,0.00019452,2]
[320343425,1711313480287,-500.0,0.00019452,2]
[320343426,1711313480298,-500.0,0.00019452,2]
[320343427,1711313480308,-12288.26,0.00019452,2]
[320343428,1711313480319,-500.0,0.00019452,2]
[320343429,1711313480329,-500.0,0.00019452,2]
[320343430,1711313480339,-500.0,0.00019452,2]
[320343431,1711313480349,-500.0,0.00019452,2]
[320343432,1711313480359,-502.32591553,0.00019452,2]
[320343433,1711313480369,-500.0,0.00019452,2]
[320343434,1711313480379,-1737.37,0.00019452,2]
[320343435,1711313480389,-151.0,0.00019452,2]
[320343436,1711313480399,-904.04,0.00019452,2]
[320343437,1711313480409,-151.0,0.00019452,2]
[320343438,1711313480419,-500.0,0.00019452,2]
[320343439,1711313480429,-1672.9,0.00019452,2]
[320343440,1711313480439,-1007.81,0.00019452,2]
[320343441,1711313480450,-500.0,0.00019452,2]
[320343442,1711313480460,-500.0,0.00019452,2]
[320343443,1711313480470,-500.0,0.00019452,2]
[320343444,1711313480479,-151.0,0.00019452,2]
[320343445,1711313480489,-500.0,0.00019452,2]
[320343446,1711313480498,-151.0,0.00019452,2]
[320343447,1711313480508,-847.27,0.00019452,2]
[320343448,1711313480518,-500.0,0.00019452,2]
[320343449,1711313480528,-500.0,0.00019452,2]
[320343450,1711313480538,-2131.38,0.00019452,2]
[320343451,1711313480548,-2913.0,0.00019452,2]
[320343452,1711313480558,-2017.65,0.00019452,2]
[320343453,1711313480568,-1135.55,0.00019452,2]
[320343454,1711313480578,-500.0,0.00019452,2]
[320343455,1711313480587,-2183.22,0.00019452,2]
[320343456,1711313480597,-7153.85,0.00019452,2]
[320343457,1711313480607,-500.0,0.00019452,2]
[320343458,1711313480616,-507.07409737,0.00019452,2]
[320343459,1711313480626,-1765.7,0.00019452,2]
[320343460,1711313480635,-1117.52,0.00019452,2]
[320343461,1711313480644,-1214.25,0.00019452,2]
[320343462,1711313480653,-501.9772529,0.00019452,2]
[320343463,1711313480663,-635.61,0.00019452,2]
[320343464,1711313480673,-501.61652392,0.00019452,2]
[320343465,1711313480682,-831.48,0.00019452,2]
[320343466,1711313480693,-3295.46,0.00019452,2]
[320343467,1711313480702,-500.0,0.00019452,2]
[320343468,1711313480712,-151.0,0.00019452,2]
[320343469,1711313480726,-843.07,0.00019452,2]
[320343470,1711313480735,-151.0,0.00019452,2]
[320343471,1711313480746,-500.0,0.00019452,2]
[320343472,1711313480757,-500.0,0.00019452,2]
[320343473,1711313480768,-151.0,0.00019452,2]
[320343474,1711313480778,-500.0,0.00019452,2]
[320343475,1711313480790,-151.0,0.00019452,2]
[320343476,1711313480801,-389.76224953,0.00019452,2]
[320343477,1711313480811,-1129.44,0.00019452,2]
[320343478,1711313480822,-500.0,0.00019452,2]
[320343479,1711313480834,-151.0,0.00019452,2]
[320343480,1711313480844,-151.0,0.00019452,2]
[320343481,1711313480854,-7576.31,0.00019452,2]
[320343482,1711313480865,-8167.56,0.00019452,2]
[320343483,1711313480875,-500.0,0.00019452,2]
[320343484,1711313480885,-500.0,0.00019452,2]
[320343485,1711313480895,-1929.0,0.00019452,2]
[320343486,1711313480906,-500.0,0.00019452,2]
[320343487,1711313480916,-689.15,0.00019452,2]
[320343488,1711313480926,-2407.56,0.00019452,2]
[320343489,1711313480935,-500.0,0.00019452,2]
[320343490,1711313480947,-502.82232345,0.00019452,2]
[320343491,1711313480958,-500.0,0.00019452,2]
[320343492,1711313480968,-500.0,0.00019452,2]
[320343493,1711313480978,-500.0,0.00019452,2]
[320343494,1711313480988,-500.0,0.00019452,2]
[320343495,1711313481003,-500.0,0.00019452,2]
[320343496,1711313481014,-500.0,0.00019452,2]
[320343497,1711313481025,-2010.38,0.00019452,2]
[320343498,1711313481035,-1470.85,0.00019452,2]
[320343499,1711313481046,-1609.31,0.00019452,2]
[320343500,1711313481056,-500.0,0.00019452,2]
[320343501,1711313481066,-541.2,0.00019452,2]
[320343502,1711313481077,-595.69,0.00019452,2]
[320343503,1711313481088,-2353.18,0.00019452,2]
[320343504,1711313481098,-347.32255799,0.00019452,2]
[320343505,1711313481109,-1617.49,0.00019452,2]
[320343506,1711313481119,-500.0,0.00019452,2]
[320343507,1711313481129,-2184.37,0.00019452,2]
[320343508,1711313481140,-151.0,0.00019452,2]
[320343509,1711313481150,-151.0,0.00019452,2]
[320343510,1711313481161,-850.86,0.00019452,2]
[320343511,1711313481171,-868.62,0.00019452,2]
[320343512,1711313481182,-1699.3,0.00019452,2]
[320343513,1711313481193,-500.0,0.00019452,2]
[320343514,1711313481204,-500.0,0.00019452,2]
[320343515,1711313481215,-500.0,0.00019452,2]
[320343516,1711313481225,-2079.02,0.00019452,2]
[320343517,1711313481236,-500.0,0.00019452,2]
[320343518,1711313481247,-500.0,0.00019452,2]
[320343519,1711313481257,-7304.19,0.00019452,2]
[320343520,1711313481271,-500.0,0.00019452,2]
[320343521,1711313481281,-2957.8,0.00019452,2]
[320343522,1711313481292,-1434.08,0.00019452,2]
[320343523,1711313481302,-500.0,0.00019452,2]
[320343524,1711313481312,-500.0,0.00019452,2]
[320343525,1711313481323,-500.0,0.00019452,2]
[320343526,1711313481333,-500.0,0.00019452,2]
[320343527,1711313481343,-500.0,0.00019452,2]
[320343528,1711313481353,-500.0,0.00019452,2]
[320343529,1711313481364,-500.0,0.00019452,2]
[320343530,1711313481375,-500.0,0.00019452,2]
[320343531,1711313481385,-500.0,0.00019452,2]
[320343532,1711313481396,-9008.12,0.00019452,2]
[320343533,1711313481406,-2760.75,0.00019452,2]
[320343534,1711313481416,-1403.73,0.00019452,2]
[320343535,1711313481426,-515.42,0.00019452,2]
[320343536,1711313481436,-500.0,0.00019452,2]
[320343537,1711313481447,-500.0,0.00019452,2]
[320343538,1711313481458,-500.0,0.00019452,2]
[320343539,1711313481468,-151.0,0.00019452,2]
[320343540,1711313481478,-151.0,0.00019452,2]
[320343541,1711313481488,-685.14,0.00019452,2]
[320343542,1711313481498,-500.0,0.00019452,2]
[320343543,1711313481508,-1270.27,0.00019452,2]
[320343544,1711313481518,-151.0,0.00019452,2]
[320343545,1711313481530,-1178.84,0.00019452,2]
[320343546,1711313481540,-151.0,0.00019452,2]
[320343547,1711313481550,-2875.17,0.00019452,2]
[320343548,1711313481559,-500.0,0.00019452,2]
[320343549,1711313481569,-1086.91,0.00019452,2]
[320343550,1711313481579,-500.0,0.00019452,2]
[320343551,1711313481589,-151.0,0.00019452,2]
[320343552,1711313481600,-151.0,0.00019452,2]
[320343553,1711313481610,-2541.72,0.00019452,2]
[320343554,1711313481620,-1116.21,0.00019452,2]
[320343555,1711313481630,-3197.34,0.00019452,2]
[320343556,1711313481640,-500.0,0.00019452,2]
[320343557,1711313481650,-500.0,0.00019452,2]
[320343558,1711313481660,-515.28761551,0.00019452,2]
[320343559,1711313481670,-891.28,0.00019452,2]
[320343560,1711313481680,-3787.58,0.00019452,2]
[320343561,1711313481690,-500.0,0.00019452,2]
[320343562,1711313481699,-708.66,0.00019452,2]
[320343563,1711313481709,-500.0,0.00019452,2]
[320343564,1711313481719,-500.0,0.00019452,2]
[320343565,1711313481729,-500.0,0.00019452,2]
[320343566,1711313481738,-500.0,0.00019452,2]
[320343567,1711313481748,-500.0,0.00019452,2]
[320343568,1711313481759,-710.6,0.00019452,2]
[320343569,1711313481770,-502.01312753,0.00019452,2]
[320343570,1711313481781,-150.0,0.00019452,2]
[320343571,1711313481793,-372.10616,0.00019452,2]
[320343572,1711313481803,-1051.4,0.00019452,2]
[320343573,1711313481813,-372.10616,0.00019452,2]
[320343574,1711313481823,-500.0,0.00019452,2]
[320343575,1711313481832,-500.0,0.00019452,2]
[320343576,1711313481842,-500.0,0.00019452,2]
[320343577,1711313481852,-1860.7,0.00019452,2]
[320343578,1711313481864,-500.0,0.00019452,2]
[320343579,1711313481875,-666.92,0.00019452,2]
[320343580,1711313481884,-372.10616,0.00019452,2]
[320343581,1711313481894,-500.0,0.00019452,2]
[320343582,1711313481903,-372.10616,0.00019452,2]
[320343583,1711313481913,-502.70357207,0.00019452,2]
[320343584,1711313481923,-968.0,0.00019452,2]
[320343585,1711313481932,-500.0,0.00019452,2]
[320343586,1711313481942,-500.0,0.00019452,2]
[320343587,1711313481953,-500.0,0.00019452,2]
[320343588,1711313481963,-500.0,0.00019452,2]
[320343589,1711313481973,-2492.57,0.00019452,2]
[320343590,1711313481983,-4694.84913324,0.00019452,2]
[320343591,1711313481993,-500.0,0.00019452,2]
[320343592,1711313482003,-1340.57,0.00019452,2]
[320343593,1711313482013,-500.0,0.00019452,2]
[320343594,1711313482023,-500.0,0.00019452,2]
[320343595,1711313482033,-500.0,0.00019452,2]
[320343596,1711313482043,-500.0,0.00019452,2]
[320343597,1711313482053,-15309.81,0.00019452,2]
[320343598,1711313482072,-511.09295663,0.00019452,2]
[320343599,1711313482084,-500.0,0.00019452,2]
[320343600,1711313482095,-500.0,0.00019452,2]
[320343601,1711313482105,-151.0,0.00019452,2]
[320343602,1711313482116,-1072.88,0.00019452,2]
[320343603,1711313482125,-500.0,0.00019452,2]
[320343604,1711313482136,-151.0,0.00019452,2]
[320343605,1711313482146,-500.0,0.00019452,2]
[320343606,1711313482156,-254.29621222,0.00019452,2]
[320343607,1711313482166,-7413.8,0.00019452,2]
[320343608,1711313482177,-500.0,0.00019452,2]
[320343609,1711313482187,-156.474961,0.00019452,2]
[320343610,1711313482199,-500.0,0.00019452,2]
[320343611,1711313482209,-500.0,0.00019452,2]
[320343612,1711313482219,-500.0,0.00019452,2]
[320343613,1711313482229,-500.0,0.00019452,2]
[320343614,1711313482239,-1424.91,0.00019452,2]
[320343615,1711313482249,-500.0,0.00019452,2]
[320343616,1711313482259,-594.56860109,0.00019452,2]
[320343617,1711313482269,-500.0,0.00019452,2]
[320343618,1711313482279,-500.0,0.00019452,2]
[320343619,1711313482289,-6052.77,0.00019452,2]
[320343620,1711313482298,-500.0,0.00019452,2]
[320343621,1711313482308,-2099.63,0.00019452,2]
[320343622,1711313482317,-500.0,0.00019452,2]
[320343623,1711313482327,-500.0,0.00019452,2]
[320343624,1711313482337,-807.54,0.00019452,2]
[320343625,1711313482347,-3286.97,0.00019452,2]
[320343626,1711313482357,-1881.63,0.00019452,2]
[320343627,1711313482367,-501.7948946,0.00019452,2]
[320343628,1711313482377,-500.0,0.00019452,2]
[320343629,1711313482386,-736.92,0.00019452,2]
[320343630,1711313482397,-855.68,0.00019452,2]
[320343631,1711313482407,-702.45,0.00019452,2]
[320343632,1711313482416,-500.0,0.00019452,2]
[320343633,1711313482426,-151.0,0.00019452,2]
[320343634,1711313482436,-151.0,0.00019452,2]
[320343635,1711313482446,-1485.32,0.00019452,2]
[320343636,1711313482456,-3010.81,0.00019452,2]
[320343637,1711313482467,-1121.37,0.00019452,2]
[320343638,1711313482477,-2847.94,0.00019452,2]
[320343639,1711313482487,-1160.38,0.00019452,2]
[320343640,1711313482497,-1219.23,0.00019452,2]
[320343641,1711313482506,-500.0,0.00019452,2]
[320343642,1711313482516,-500.0,0.00019452,2]
[320343643,1711313482525,-500.0,0.00019452,2]
[320343644,1711313482535,-216.7699383,0.00019452,2]
[320343645,1711313482545,-500.0,0.00019452,2]
[320343646,1711313482556,-500.0,0.00019452,2]
[320343647,1711313482566,-500.0,0.00019452,2]
[320343648,1711313482575,-1845.78,0.00019452,2]
[320343649,1711313482585,-501.35099002,0.00019452,2]
[320343650,1711313482594,-500.0,0.00019452,2]
[320343651,1711313482604,-1075.15,0.00019452,2]
[320343652,1711313482613,-882.93,0.00019452,2]
[320343653,1711313482623,-700.29,0.00019452,2]
[320343654,1711313482632,-500.0,0.00019452,2]
[320343655,1711313482642,-2281.0,0.00019452,2]
[320343656,1711313482652,-500.0,0.00019452,2]
[320343657,1711313482661,-500.0,0.00019452,2]
[320343658,1711313482671,-500.0,0.00019452,2]
[320343659,1711313482680,-988.4,0.00019452,2]
[320343660,1711313482691,-500.0,0.00019452,2]
[320343661,1711313482701,-500.0,0.00019452,2]
[320343662,1711313482711,-500.0,0.00019452,2]
[320343663,1711313482720,-505.9626581,0.00019452,2]
[320343664,1711313482730,-6001.68,0.00019452,2]
[320343665,1711313482740,-509.68316033,0.00019452,2]
[320343666,1711313482750,-500.0,0.00019452,2]
[320343667,1711313482766,-713.7,0.00019452,2]
[320343668,1711313482776,-500.0,0.00019452,2]
[320343669,1711313482787,-500.0,0.00019452,2]
[320343670,1711313482797,-500.0,0.00019452,2]
[320343671,1711313482807,-500.0,0.00019452,2]
[320343672,1711313482946,-3809.55,0.00019452,2]
[320343673,1711313482958,-500.0,0.00019452,2]
[320343674,1711313482969,-994.47,0.00019452,2]
[320343675,1711313482979,-774.75,0.00019452,2]
[320343676,1711313482990,-501.07155427,0.00019452,2]
[320343677,1711313483002,-500.0,0.00019452,2]
[320343678,1711313483013,-500.0,0.00019452,2]
[320343679,1711313483024,-500.0,0.00019452,2]
[320343680,1711313483035,-1031.37,0.00019452,2]
[320343681,1711313483046,-151.0,0.00019452,2]
[320343682,1711313483056,-151.0,0.00019452,2]
[320343683,1711313483066,-1209.6,0.00019452,2]
[320343684,1711313483076,-501.63540857,0.00019452,2]
[320343685,1711313483086,-2852.27,0.00019452,2]
[320343686,1711313483096,-5449.93,0.00019452,2]
[320343687,1711313483105,-500.0,0.00019452,2]
[320343688,1711313483115,-2504.57,0.00019452,2]
[320343689,1711313483125,-1375.01,0.00019452,2]
[320343690,1711313483136,-151.0,0.00019452,2]
[320343691,1711313483146,-500.0,0.00019452,2]
[320343692,1711313483155,-922.77,0.00019452,2]
[320343693,1711313483165,-151.0,0.00019452,2]
[320343694,1711313483175,-500.0,0.00019452,2]
[320343695,1711313483185,-500.0,0.00019452,2]
[320343696,1711313483196,-500.0,0.00019452,2]
[320343697,1711313483207,-500.0,0.00019452,2]
[320343698,1711313483216,-677.5,0.00019452,2]
[320343699,1711313483226,-27645.76,0.00019452,2]
[320343700,1711313483236,-500.0,0.00019452,2]
[320343701,1711313483245,-1469.42,0.00019452,2]
[320343702,1711313483259,-524.9,0.00019452,2]
[320343703,1711313483269,-2829.93,0.00019452,2]
[320343704,1711313483279,-1121.18,0.00019452,2]
[320343705,1711313483289,-977.21,0.00019452,2]
[320343706,1711313483299,-500.0,0.00019452,2]
[320343707,1711313483310,-274.85573099,0.00019453,2]
[320343708,1711313483319,-28835.55223136,0.00019453,2]
[320343709,1711313483330,-98262.20878064,0.00019455,2]
[320343710,1711313483340,-215.72852232,0.00019456,2]
[320343711,1711313483350,-245.65552205,0.00019463,2]
[320343712,1711313483360,-651.76886925,0.00019464,2]
[320343713,1711313483370,-165.38770712,0.00019466,2]
[320343714,1711313483380,-157.00640378,0.00019467,2]
[320343715,1711313483390,-805.52311841,0.00019468,2]
[320343716,1711313483401,-1000.0,0.0001947,2]
[320343717,1711313483411,-1441.77761166,0.0001947,2]
[320343718,1711313483421,-344.82896652,0.00019472,2]
[320343719,1711313483430,-215.72852232,0.00019474,2]
[320343720,1711313483440,-1441.77761166,0.0001948,2]
[320343721,1711313483450,-344.82896652,0.00019481,2]
[320343722,1711313483460,-390.27046867,0.00019482,2]
[320343723,1711313483470,-384.38287733,0.00019482,2]
[320343724,1711313483480,-15033.24986649,0.00019485,2]
[320343725,1711313483490,-28835.55223136,0.00019485,2]
[320343726,1711313483500,-215.72852232,0.00019486,2]
[320343727,1711313483510,-13035.3773832,0.00019486,2]
[320343728,1711313483520,-274.85573099,0.00019488,2]
[320343729,1711313483530,-4705.95945824,0.00019489,2]
[320343730,1711313483541,-98262.20878064,0.00019491,2]
[320343731,1711313483551,-390.27046867,0.00019493,2]
[320343732,1711313483560,-154.3652704,0.00019494,2]
[320343733,1711313483570,-15033.24986649,0.00019496,2]
[320343734,1711313483580,-416.85829013,0.00019498,2]
[320343735,1711313483590,-416.85829013,0.00019498,2]
[320343736,1711313483599,-416.85829013,0.00019498,2]
[320343737,1711313483609,-416.85829013,0.00019498,2]
[320343738,1711313483620,-13035.3773832,0.00019499,2]
[320343739,1711313483630,-1000.0,0.000195,2]
[320343740,1711313483640,-12793.34729258,0.00019536,2]
[320343741,1711313483649,-253.46441695,0.00019545,2]
[320343742,1711313483660,-200.85,0.0001956,15]
[320343743,1711313483670,-150.5,0.0001957,15]
[320343744,1711313483679,-152.08525188,0.00019577,2]
[320343745,1711313483689,-150.5,0.0001958,15]
[320343746,1711313483702,-437.27773321,0.00019609,2]
[320343747,1711313483712,-1559.8736697,0.00019612,2]
[320343748,1711313483722,-686.85231899,0.00019624,2]
[320343749,1711313483731,-238.47699909,0.000197,2]
[320343750,1711313483741,-200.0,0.000197,7]
[320343751,1711313483750,-416.85829013,0.00019712,2]
[320343752,1711313483762,-118958.5422498,0.00019713,2]
[320343753,1711313483773,-20290.2064441,0.00019713,2]
[320343754,1711313483782,-12793.34729258,0.00019718,2]
[320343755,1711313483792,-416.85829013,0.00019725,2]
[320343756,1711313483807,-174.72,0.00019726,2]
[320343757,1711313483816,-500.0,0.00019726,2]
[320343758,1711313483826,-500.0,0.00019726,2]
[320343759,1711313483836,-500.0,0.00019726,2]
[320343760,1711313483845,-500.0,0.00019726,2]
[320343761,1711313483855,-500.0,0.00019726,2]
[320343762,1711313483866,-500.0,0.00019726,2]
[320343763,1711313483876,-561.84581651,0.00019726,2]
[320343764,1711313483886,-500.0,0.00019726,2]
[320343765,1711313483895,-667.4,0.00019726,2]
[320343766,1711313483905,-506.27417132,0.00019726,2]